[Event "Lichtenrader Herbst 2019"]
[Site "Berlin"]
[Date "2019.10.13"]
[Round "2.3"]
[White "Shishkin, Vadim"]
[Black "Spors, Carl Philip"]
[Result "1-0"]
[ECO "E71"]
[WhiteElo "2428"]
[BlackElo "1971"]
[Annotator "NA"]
[PlyCount "83"]
[EventDate "2019.10.12"]
[EventType "swiss"]
[EventCountry "GER"]
[SourceTitle "playchess.com"]
[Source "ChessBase"]
[SourceQuality "1"]
[TimeControl "40/5400+30:1800+30"]

1. d4 {[%emt 0:00:00]} Nf6 {[%emt 0:00:00]} 2. c4 {[%emt 0:00:00]} g6 {[%emt 0:00:00]} 3. Nc3 {[%emt 0:00:00]} Bg7 {[%emt 0:00:00]} 4. e4 {[%emt 0:00:00]} O-O {[%emt 0:00:00]} 5. Be3 {[%emt 0:01:42]} d6 {[%emt 0:00:16]} 6. h3 {[%emt 0:00:05]} e5 {[%emt 0:03:16]} 7. d5 {[%emt 0:00:05]} Nh5 {[%emt 0:01:06]} 8. g3 {[%emt 0:01:39]} Na6 {[%emt 0:08:06]} 9. Be2 {[%emt 0:00:57]} Nf6 {[%emt 0:00:22]} 10. g4 {[%emt 0:02:31]} Nc5 {[%emt 0:00:11]} 11. Bf3 {[%emt 0:00:15]} c6 {[%emt 0:05:36]} 12. g5 {[%emt 0:03:36]} Ne8 {[%emt 0:01:13]} 13. b4 {[%emt 0:09:42]} Na6 {[%emt 0:01:36]} 14. a3 {[%emt 0:00:59]} cxd5 {[%emt 0:01:22]} 15. cxd5 {[%emt 0:00:53]} f5 {[%emt 0:16:57]} 16. gxf6 {[%emt 0:00:07]} Bxf6 {[%emt 0:00:48]} 17. Qd2 {[%emt 0:02:49]} Bd7 {[%emt 0:06:12]} 18. Rc1 {[%emt 0:06:26]} Nec7 {[%emt 0:06:22]} 19. Be2 {[%emt 0:12:00]} Rf7 {[%emt 0:10:22]} 20. Nf3 {[%emt 0:01:48]} Bh4 {[%emt 0:10:53]} 21. Rh2 {[%emt 0:01:53]} Bf6 {[%emt 0:03:11]} 22. h4 {[%emt 0:05:56]} Qe7 {[%emt 0:02:29]} 23. Ng5 {[%emt 0:09:43]} Rg7 {[%emt 0:02:48]} 24. b5 {[%emt 0:03:27]} Nb8 {[%emt 0:01:08]} 25. a4 {[%emt 0:01:23]} h6 {[%emt 0:08:14]} 26. Na2 {[%emt 0:05:22]} Ne8 {[%emt 0:01:57]} 27. Ne6 {[%emt 0:01:45]} Bxe6 {[%emt 0:01:01]} 28. dxe6 {[%emt 0:00:05]} h5 {[%emt 0:01:47]} 29. Rc8 {[%emt 0:01:42]} Kh7 {[%emt 0:00:29]} 30. Bc4 {[%emt 0:00:51]} Rg8 {[%emt 0:00:46]} 31. Bg5 {[%emt 0:05:43]} Bxg5 {[%emt 0:02:56]} 32. hxg5 {[%emt 0:03:39]} Nc7 {[%emt 0:00:54]} 33. Rxg8 {[%emt 0:00:25]} Kxg8 {[%emt 0:00:05]} 34. Nc3 {[%emt 0:00:51]} Kg7 {[%emt 0:03:03]} 35. Rh3 {[%emt 0:04:17]} Nxe6 {[%emt 0:00:40]} 36. Qd5 {[%emt 0:06:06]} Nxg5 {[%emt 0:00:39]} 37. Qg8+ {[%emt 0:00:04]} Kh6 {[%emt 0:00:22]} 38. Rg3 {[%emt 0:00:08]} Qf6 {[%emt 0:01:20]} 39. Nd5 {[%emt 0:01:00]} Nf3+ {[%emt 0:00:13]} 40. Kd1 {[%emt 0:00:31]} Qg7 {[%emt 0:00:47]} 41. Qxg7+ {[%emt 0:30:39]} Kxg7 {[%emt 0:30:19]} 42. Rxf3 {[%emt 0:01:04]} 1-0

[Event "Lichtenrader Herbst 2019"]
[Site "Berlin"]
[Date "2019.10.13"]
[Round "2.4"]
[White "Tham, Nam"]
[Black "Jacobi, Robin"]
[Result "0-1"]
[ECO "B80"]
[WhiteElo "1927"]
[BlackElo "2267"]
[Annotator "NA"]
[PlyCount "70"]
[EventDate "2019.10.12"]
[EventType "swiss"]
[EventCountry "GER"]
[SourceTitle "playchess.com"]
[Source "ChessBase"]
[SourceQuality "1"]
[TimeControl "40/5400+30:1800+30"]

1. e4 {[%emt 0:00:00]} c5 {[%emt 0:00:00]} 2. Nf3 {[%emt 0:00:00]} d6 {[%emt 0:00:00]} 3. d4 {[%emt 0:00:12]} cxd4 {[%emt 0:00:00]} 4. Nxd4 {[%emt 0:00:23]} Nf6 {[%emt 0:00:04]} 5. Nc3 {[%emt 0:00:44]} e6 {[%emt 0:00:19]} 6. Bd3 {[%emt 0:01:13]} Nc6 {[%emt 0:01:55]} 7. Nxc6 {[%emt 0:00:26]} bxc6 {[%emt 0:00:06]} 8. O-O {[%emt 0:00:39]} Be7 {[%emt 0:00:53]} 9. b3 {[%emt 0:02:28]} O-O {[%emt 0:02:09]} 10. Qf3 {[%emt 0:02:01]} e5 {[%emt 0:02:04]} 11. h3 {[%emt 0:02:16]} Be6 {[%emt 0:04:16]} 12. Re1 {[%emt 0:04:00]} Qc7 {[%emt 0:07:42]} 13. Ba3 {[%emt 0:02:06]} Rfe8 {[%emt 0:04:12]} 14. Rad1 {[%emt 0:12:51]} d5 {[%emt 0:03:33]} 15. Bb2 {[%emt 0:01:35]} d4 {[%emt 0:07:40]} 16. Nb1 {[%emt 0:01:37]} Nd7 {[%emt 0:04:13]} 17. c3 {[%emt 0:09:01]} c5 {[%emt 0:01:38]} 18. Nd2 {[%emt 0:04:30]} Qa5 {[%emt 0:04:04]} 19. Bb1 {[%emt 0:00:54]} Bg5 {[%emt 0:09:34]} 20. Nf1 {[%emt 0:01:10]} Qb6 {[%emt 0:05:54]} 21. Ng3 {[%emt 0:02:32]} g6 {[%emt 0:04:01]} 22. Ne2 {[%emt 0:02:28]} a5 {[%emt 0:02:04]} 23. Qg3 {[%emt 0:02:21]} Bf6 {[%emt 0:02:21]} 24. Nc1 {[%emt 0:01:07]} Bg7 {[%emt 0:03:48]} 25. Kh1 {[%emt 0:01:30]} c4 {[%emt 0:03:11]} 26. cxd4 {[%emt 0:05:00]} exd4 {[%emt 0:00:21]} 27. f4 {[%emt 0:00:51]} c3 {[%emt 0:10:52]} 28. Ba3 {[%emt 0:01:15]} a4 {[%emt 0:02:02]} 29. f5 {[%emt 0:02:38]} Bxb3 {[%emt 0:01:12]} 30. axb3 {[%emt 0:01:14]} axb3 {[%emt 0:00:05]} 31. Nxb3 {[%emt 0:04:32]} Be5 {[%emt 0:04:37]} 32. Qd3 {[%emt 0:01:54]} Qxb3 {[%emt 0:01:53]} 33. Bc1 {[%emt 0:00:18]} Nc5 {[%emt 0:01:37]} 34. Qc2 {[%emt 0:00:14]} Qxc2 {[%emt 0:01:18]} 35. Bxc2 {[%emt 0:00:07]} Ra2 {[%emt 0:00:16]} 0-1

[Event "Lichtenrader Herbst 2019"]
[Site "Berlin"]
[Date "2019.10.13"]
[Round "2.5"]
[White "Noetzel, Felix"]
[Black "Riering, Berthold"]
[Result "1-0"]
[ECO "A29"]
[WhiteElo "2233"]
[BlackElo "1983"]
[Annotator "NA"]
[PlyCount "43"]
[EventDate "2019.10.12"]
[EventType "swiss"]
[EventCountry "GER"]
[SourceTitle "playchess.com"]
[Source "ChessBase"]
[SourceQuality "1"]
[TimeControl "40/5400+30:1800+30"]

1. c4 {[%emt 0:00:00]} e5 {[%emt 0:00:00]} 2. Nc3 {[%emt 0:00:00]} Nf6 {[%emt 0:00:00]} 3. g3 {[%emt 0:00:04]} d5 {[%emt 0:00:00]} 4. cxd5 {[%emt 0:00:06]} Nxd5 {[%emt 0:00:00]} 5. Bg2 {[%emt 0:00:16]} Nb6 {[%emt 0:00:00]} 6. Nf3 {[%emt 0:00:14]} Nc6 {[%emt 0:00:00]} 7. O-O {[%emt 0:00:46]} Be7 {[%emt 0:00:28]} 8. a3 {[%emt 0:00:44]} Be6 {[%emt 0:00:14]} 9. b4 {[%emt 0:01:35]} a5 {[%emt 0:03:42]} 10. b5 {[%emt 0:02:08]} Nd4 {[%emt 0:00:08]} 11. Rb1 {[%emt 0:01:22]} a4 {[%emt 0:01:39]} 12. Nxe5 {[%emt 0:05:43]} Bb3 {[%emt 0:00:16]} 13. Rxb3 {[%emt 0:00:54]} axb3 {[%emt 0:03:50]} 14. Bxb7 {[%emt 0:08:22]} Na4 {[%emt 0:14:39]} 15. Nc6 {[%emt 0:26:59]} Nxc3 {[%emt 0:19:45]} 16. dxc3 {[%emt 0:01:40]} Nxc6 {[%emt 0:07:47]} 17. Bxc6+ {[%emt 0:00:05]} Kf8 {[%emt 0:00:04]} 18. Bxa8 {[%emt 0:01:52]} Qxa8 {[%emt 0:00:09]} 19. Qxb3 {[%emt 0:00:15]} h5 {[%emt 0:00:10]} 20. Rd1 {[%emt 0:04:52]} h4 {[%emt 0:00:37]} 21. Qd5 {[%emt 0:00:49]} Qa7 {[%emt 0:01:31]} 22. Be3 {[%emt 0:01:15]} 1-0

[Event "Lichtenrader Herbst 2019"]
[Site "Berlin"]
[Date "2019.10.13"]
[Round "2.6"]
[White "Nitsche, Nikolai"]
[Black "Polatel, Ali"]
[Result "0-1"]
[ECO "B12"]
[WhiteElo "1789"]
[BlackElo "2235"]
[Annotator "NA"]
[PlyCount "92"]
[EventDate "2019.10.12"]
[EventType "swiss"]
[EventCountry "GER"]
[SourceTitle "playchess.com"]
[Source "ChessBase"]
[SourceQuality "1"]
[TimeControl "40/5400+30:1800+30"]

1. e4 {[%emt 0:00:00]} c6 {[%emt 0:00:00]} 2. d4 {[%emt 0:00:00]} d5 {[%emt 0:00:00]} 3. e5 {[%emt 0:00:09]} c5 {[%emt 0:00:03]} 4. c4 {[%emt 0:00:26]} e6 {[%emt 0:03:52]} 5. cxd5 {[%emt 0:04:26]} Qxd5 {[%emt 0:03:18]} 6. Be3 {[%emt 0:12:13]} cxd4 {[%emt 0:02:11]} 7. Qxd4 {[%emt 0:00:35]} Qxd4 {[%emt 0:02:40]} 8. Bxd4 {[%emt 0:02:35]} Nc6 {[%emt 0:02:48]} 9. Bc3 {[%emt 0:00:40]} Nge7 {[%emt 0:00:31]} 10. Nf3 {[%emt 0:03:22]} Nd5 {[%emt 0:05:27]} 11. Bd2 {[%emt 0:00:16]} Be7 {[%emt 0:06:29]} 12. Nc3 {[%emt 0:02:01]} Nxc3 {[%emt 0:01:45]} 13. Bxc3 {[%emt 0:00:09]} O-O {[%emt 0:00:28]} 14. O-O-O {[%emt 0:00:14]} Rd8 {[%emt 0:05:01]} 15. Rxd8+ {[%emt 0:01:52]} Bxd8 {[%emt 0:00:06]} 16. Bd3 {[%emt 0:02:15]} Bd7 {[%emt 0:03:13]} 17. Rd1 {[%emt 0:00:22]} Be8 {[%emt 0:00:19]} 18. g3 {[%emt 0:10:41]} Rc8 {[%emt 0:01:44]} 19. Kb1 {[%emt 0:04:27]} Bc7 {[%emt 0:02:17]} 20. Be4 {[%emt 0:05:52]} b5 {[%emt 0:06:06]} 21. a3 {[%emt 0:02:18]} Bb6 {[%emt 0:03:47]} 22. Rd2 {[%emt 0:09:04]} h6 {[%emt 0:04:36]} 23. Ne1 {[%emt 0:04:34]} Na5 {[%emt 0:02:02]} 24. f4 {[%emt 0:05:11]} g6 {[%emt 0:03:34]} 25. Nc2 {[%emt 0:01:42]} Nb3 {[%emt 0:01:41]} 26. Rd1 {[%emt 0:01:30]} h5 {[%emt 0:01:07]} 27. Ne1 {[%emt 0:06:24]} Nc5 {[%emt 0:00:55]} 28. Bc2 {[%emt 0:00:45]} Bc6 {[%emt 0:00:28]} 29. b4 {[%emt 0:01:14]} Nd7 {[%emt 0:05:09]} 30. Bd4 {[%emt 0:00:24]} Bc7 {[%emt 0:01:00]} 31. Nd3 {[%emt 0:01:25]} Nb6 {[%emt 0:03:26]} 32. Nf2 {[%emt 0:01:52]} Nc4 {[%emt 0:02:35]} 33. Ka2 {[%emt 0:03:59]} a5 {[%emt 0:01:24]} 34. Ne4 {[%emt 0:01:39]} Ra8 {[%emt 0:01:15]} 35. Nf6+ {[%emt 0:02:54]} Kg7 {[%emt 0:03:20]} 36. Kb3 {[%emt 0:01:35]} axb4 {[%emt 0:00:57]} 37. Kxb4 {[%emt 0:00:59]} Nxa3 {[%emt 0:01:31]} 38. Bd3 {[%emt 0:00:08]} Nc4 {[%emt 0:10:06]} 39. Kc5 {[%emt 0:02:25]} Bf3 {[%emt 0:00:18]} 40. Rc1 {[%emt 0:00:33]} Bb6+ {[%emt 0:10:27]} 41. Kxb5 {[%emt 0:30:22]} Bxd4 {[%emt 0:30:40]} 42. Bxc4 {[%emt 0:00:06]} Rb8+ {[%emt 0:00:00]} 43. Ka6 {[%emt 0:00:00]} Bc6 {[%emt 0:00:00]} 44. Ka5 {[%emt 0:00:00]} Bb6+ {[%emt 0:00:00]} 45. Ka6 {[%emt 0:00:00]} Be3 {[%emt 0:00:00]} 46. Re1 {[%emt 0:00:00]} Ra8# {[%emt 0:00:23]} 0-1

[Event "Lichtenrader Herbst 2019"]
[Site "Berlin"]
[Date "2019.10.13"]
[Round "2.7"]
[White "Schnabel, Ralf"]
[Black "Harutyunyan, Axel"]
[Result "1-0"]
[ECO "B11"]
[WhiteElo "2235"]
[BlackElo "1909"]
[Annotator "NA"]
[PlyCount "151"]
[EventDate "2019.10.12"]
[EventType "swiss"]
[EventCountry "GER"]
[SourceTitle "playchess.com"]
[Source "ChessBase"]
[SourceQuality "1"]
[TimeControl "40/5400+30:1800+30"]

1. e4 {[%emt 0:00:00]} c6 {[%emt 0:00:00]} 2. Nc3 {[%emt 0:00:22]} d5 {[%emt 0:00:00]} 3. Qe2 {[%emt 0:00:04]} d4 {[%emt 0:01:06]} 4. Nd1 {[%emt 0:00:07]} e5 {[%emt 0:00:54]} 5. d3 {[%emt 0:01:16]} Bd6 {[%emt 0:08:37]} 6. g3 {[%emt 0:00:37]} Nf6 {[%emt 0:02:30]} 7. f4 {[%emt 0:03:15]} Qc7 {[%emt 0:02:24]} 8. Nf3 {[%emt 0:06:24]} Bg4 {[%emt 0:01:42]} 9. f5 {[%emt 0:01:39]} c5 {[%emt 0:04:20]} 10. Nf2 {[%emt 0:00:56]} Bxf3 {[%emt 0:00:22]} 11. Qxf3 {[%emt 0:00:03]} Nc6 {[%emt 0:00:22]} 12. g4 {[%emt 0:04:36]} O-O-O {[%emt 0:01:58]} 13. h4 {[%emt 0:08:36]} Kb8 {[%emt 0:10:24]} 14. Bg2 {[%emt 0:04:35]} Rc8 {[%emt 0:11:18]} 15. O-O {[%emt 0:04:05]} Qe7 {[%emt 0:04:30]} 16. g5 {[%emt 0:07:04]} Nd7 {[%emt 0:04:05]} 17. Ng4 {[%emt 0:01:57]} Qd8 {[%emt 0:04:59]} 18. Rf2 {[%emt 0:06:38]} h5 {[%emt 0:08:43]} 19. Nh2 {[%emt 0:03:42]} Qa5 {[%emt 0:01:59]} 20. Bd2 {[%emt 0:08:42]} Qb6 {[%emt 0:01:28]} 21. b3 {[%emt 0:02:24]} Nb4 {[%emt 0:02:09]} 22. Qd1 {[%emt 0:00:41]} Rcf8 {[%emt 0:01:52]} 23. Nf1 {[%emt 0:00:32]} g6 {[%emt 0:01:43]} 24. Bh3 {[%emt 0:01:22]} Qc7 {[%emt 0:00:28]} 25. Ng3 {[%emt 0:00:32]} Be7 {[%emt 0:01:22]} 26. a3 {[%emt 0:03:16]} Nc6 {[%emt 0:01:22]} 27. Qe2 {[%emt 0:02:12]} Nb6 {[%emt 0:01:37]} 28. Qe1 {[%emt 0:03:44]} Nc8 {[%emt 0:00:49]} 29. Nf1 {[%emt 0:02:30]} Nd6 {[%emt 0:06:19]} 30. Qb1 {[%emt 0:05:23]} Nb5 {[%emt 0:02:18]} 31. Qb2 {[%emt 0:00:33]} Qd8 {[%emt 0:00:34]} 32. Rg2 {[%emt 0:05:36]} Rhg8 {[%emt 0:00:58]} 33. Nh2 {[%emt 0:01:16]} Nc7 {[%emt 0:09:44]} 34. Nf3 {[%emt 0:00:54]} Bd6 {[%emt 0:00:32]} 35. Rf1 {[%emt 0:03:18]} Nb5 {[%emt 0:00:41]} 36. Rgf2 {[%emt 0:01:34]} Qe7 {[%emt 0:01:05]} 37. Be1 {[%emt 0:02:34]} Qd8 {[%emt 0:00:32]} 38. Nd2 {[%emt 0:03:26]} Be7 {[%emt 0:00:44]} 39. Nf3 {[%emt 0:01:09]} Bd6 {[%emt 0:00:21]} 40. Kh2 {[%emt 0:00:45]} Qc7 {[%emt 0:02:32]} 41. Nd2 {[%emt 0:31:36]} Qd8 {[%emt 0:30:26]} 42. Rg2 {[%emt 0:00:00]} Ka8 {[%emt 0:00:00]} 43. Nb1 {[%emt 0:00:00]} Be7 {[%emt 0:00:00]} 44. Bd2 {[%emt 0:00:00]} Kb8 {[%emt 0:00:00]} 45. Qc1 {[%emt 0:00:00]} Bd6 {[%emt 0:00:00]} 46. Rf3 {[%emt 0:00:00]} Ne7 {[%emt 0:00:00]} 47. Rgf2 {[%emt 0:00:00]} Nc7 {[%emt 0:00:00]} 48. Qf1 {[%emt 0:00:00]} Nc6 {[%emt 0:00:19]} 49. Bc1 {[%emt 0:00:00]} Qe7 {[%emt 0:00:29]} 50. Nd2 {[%emt 0:00:00]} Qd8 {[%emt 0:00:38]} 51. Nc4 {[%emt 0:00:00]} Be7 {[%emt 0:00:08]} 52. Bd2 {[%emt 0:00:00]} b6 {[%emt 0:02:34]} 53. Kg1 {[%emt 0:00:55]} Kb7 {[%emt 0:00:16]} 54. Kg2 {[%emt 0:00:31]} Kb8 {[%emt 0:00:20]} 55. fxg6 {[%emt 0:00:14]} fxg6 {[%emt 0:00:06]} 56. Rxf8 {[%emt 0:00:04]} Rxf8 {[%emt 0:00:54]} 57. Rxf8 {[%emt 0:00:06]} Qxf8 {[%emt 0:01:48]} 58. Qxf8+ {[%emt 0:00:51]} Bxf8 {[%emt 0:00:04]} 59. Bd7 {[%emt 0:00:05]} b5 {[%emt 0:00:11]} 60. Bxc6 {[%emt 0:01:19]} bxc4 {[%emt 0:00:03]} 61. dxc4 {[%emt 0:00:25]} Be7 {[%emt 0:00:29]} 62. Bd7 {[%emt 0:00:35]} Bd6 {[%emt 0:00:57]} 63. Ba5 {[%emt 0:00:45]} Kb7 {[%emt 0:01:22]} 64. Bxc7 {[%emt 0:00:55]} Kxc7 {[%emt 0:00:14]} 65. Be8 {[%emt 0:00:04]} Kd8 {[%emt 0:00:32]} 66. Bxg6 {[%emt 0:00:05]} Ke7 {[%emt 0:00:11]} 67. Bxh5 {[%emt 0:00:14]} Kf8 {[%emt 0:00:05]} 68. Kh3 {[%emt 0:00:05]} Kg7 {[%emt 0:00:03]} 69. Kg4 {[%emt 0:00:06]} Bc7 {[%emt 0:00:14]} 70. Kf5 {[%emt 0:00:05]} Bb8 {[%emt 0:00:10]} 71. Ke6 {[%emt 0:00:15]} Bc7 {[%emt 0:00:05]} 72. Kd5 {[%emt 0:00:14]} Ba5 {[%emt 0:00:36]} 73. Be8 {[%emt 0:01:26]} Be1 {[%emt 0:00:16]} 74. h5 {[%emt 0:00:15]} Bd2 {[%emt 0:00:12]} 75. g6 {[%emt 0:00:05]} Be3 {[%emt 0:00:11]} 76. Kxe5 {[%emt 0:00:17]} 1-0

[Event "Lichtenrader Herbst 2019"]
[Site "Berlin"]
[Date "2019.10.13"]
[Round "2.8"]
[White "Rosmait, Emily"]
[Black "Postler, Reinhard"]
[Result "1-0"]
[ECO "B40"]
[WhiteElo "1908"]
[BlackElo "2240"]
[Annotator "NA"]
[PlyCount "89"]
[EventDate "2019.10.12"]
[EventType "swiss"]
[EventCountry "GER"]
[SourceTitle "playchess.com"]
[Source "ChessBase"]
[SourceQuality "1"]
[TimeControl "40/5400+30:1800+30"]

1. e4 {[%emt 0:00:00]} c5 {[%emt 0:00:00]} 2. Nf3 {[%emt 0:00:00]} e6 {[%emt 0:00:00]} 3. c4 {[%emt 0:00:09]} d6 {[%emt 0:01:07]} 4. Nc3 {[%emt 0:01:02]} Nf6 {[%emt 0:00:02]} 5. d4 {[%emt 0:00:48]} cxd4 {[%emt 0:00:02]} 6. Nxd4 {[%emt 0:00:12]} Be7 {[%emt 0:00:30]} 7. Be2 {[%emt 0:01:30]} O-O {[%emt 0:01:21]} 8. O-O {[%emt 0:02:26]} Nc6 {[%emt 0:00:37]} 9. b3 {[%emt 0:04:39]} Qc7 {[%emt 0:04:32]} 10. Bb2 {[%emt 0:05:48]} a6 {[%emt 0:06:34]} 11. Nc2 {[%emt 0:03:21]} b6 {[%emt 0:01:54]} 12. Ne3 {[%emt 0:01:46]} Ne5 {[%emt 0:05:45]} 13. Qd2 {[%emt 0:06:31]} Bb7 {[%emt 0:00:52]} 14. f3 {[%emt 0:08:37]} Rad8 {[%emt 0:16:37]} 15. Rad1 {[%emt 0:07:33]} Bc6 {[%emt 0:10:38]} 16. Qe1 {[%emt 0:10:32]} Qb7 {[%emt 0:02:25]} 17. a4 {[%emt 0:01:52]} Ng6 {[%emt 0:03:47]} 18. Bd3 {[%emt 0:04:51]} Rfe8 {[%emt 0:01:57]} 19. Bc2 {[%emt 0:01:10]} Bf8 {[%emt 0:13:25]} 20. Qg3 {[%emt 0:08:06]} Nh5 {[%emt 0:16:58]} 21. Qg4 {[%emt 0:12:13]} Nhf4 {[%emt 0:01:10]} 22. h4 {[%emt 0:04:10]} h5 {[%emt 0:00:23]} 23. Qg3 {[%emt 0:00:29]} Be7 {[%emt 0:04:09]} 24. Qh2 {[%emt 0:01:03]} d5 {[%emt 0:00:16]} 25. exd5 {[%emt 0:03:19]} exd5 {[%emt 0:00:16]} 26. Bxg6 {[%emt 0:01:00]} Bc5 {[%emt 0:02:38]} 27. cxd5 {[%emt 0:04:58]} Bxd5 {[%emt 0:00:45]} 28. Ncxd5 {[%emt 0:02:49]} Nxg6 {[%emt 0:01:06]} 29. Kh1 {[%emt 0:01:10]} Bxe3 {[%emt 0:01:25]} 30. Nxe3 {[%emt 0:01:00]} Rxd1 {[%emt 0:00:04]} 31. Nxd1 {[%emt 0:00:24]} Re2 {[%emt 0:00:56]} 32. Ba1 {[%emt 0:01:20]} Qe7 {[%emt 0:00:10]} 33. Nc3 {[%emt 0:00:34]} Rc2 {[%emt 0:00:02]} 34. Ne4 {[%emt 0:00:38]} Nxh4 {[%emt 0:00:07]} 35. Nf2 {[%emt 0:00:55]} Nf5 {[%emt 0:00:08]} 36. Ne4 {[%emt 0:00:20]} h4 {[%emt 0:00:23]} 37. Re1 {[%emt 0:00:40]} Ng3+ {[%emt 0:00:11]} 38. Kg1 {[%emt 0:00:09]} Nxe4 {[%emt 0:00:44]} 39. fxe4 {[%emt 0:00:25]} Qc5+ {[%emt 0:00:18]} 40. Kh1 {[%emt 0:00:34]} Qf2 {[%emt 0:00:12]} 41. Rg1 {[%emt 0:06:39]} h3 {[%emt 0:00:03]} 42. Qxh3 {[%emt 0:01:37]} Rc6 {[%emt 0:00:03]} 43. Rd1 {[%emt 0:04:11]} Rh6 {[%emt 0:00:32]} 44. Rd8+ {[%emt 0:01:07]} Kh7 {[%emt 0:00:01]} 45. Rh8+ {[%emt 0:01:04]} 1-0

[Event "Lichtenrader Herbst 2019"]
[Site "Berlin"]
[Date "2019.10.14"]
[Round "3.1"]
[White "Hommel, Niclas"]
[Black "Kovalev, Andrei"]
[Result "1/2-1/2"]
[ECO "B42"]
[WhiteElo "2065"]
[BlackElo "2511"]
[Annotator "ChessBase"]
[PlyCount "94"]
[EventDate "2019.10.12"]
[EventType "swiss"]
[EventCountry "GER"]
[SourceTitle "playchess.com"]
[Source "ChessBase"]
[SourceQuality "1"]
[TimeControl "40/5400+30:1800+30"]

1. e4 {[%emt 0:00:00]} c5 {[%emt 0:00:00]} 2. Nf3 {[%emt 0:00:00]} e6 {[%emt 0:00:04]} 3. d4 {[%emt 0:00:00]} cxd4 {[%emt 0:00:05]} 4. Nxd4 {[%emt 0:00:00]} a6 {[%emt 0:00:03]} 5. Bd3 {[%emt 0:00:00]} Ne7 {[%emt 0:00:40]} 6. O-O {[%emt 0:00:01]} Nbc6 {[%emt 0:00:04]} 7. Be3 {[%emt 0:00:04]} Nxd4 {[%emt 0:06:11]} 8. Bxd4 {[%emt 0:00:04]} Nc6 {[%emt 0:00:08]} 9. Bc3 {[%emt 0:00:03]} b5 {[%emt 0:00:28]} 10. a3 {[%emt 0:00:06]} Bb7 {[%emt 0:04:15]} 11. Nd2 {[%emt 0:11:26]} e5 {[%emt 0:04:10]} 12. b4 {[%emt 0:04:28]} Be7 {[%emt 0:16:45]} 13. Bb2 {[%emt 0:00:44]} O-O {[%emt 0:08:02]} 14. c4 {[%emt 0:01:56]} bxc4 {[%emt 0:05:38]} 15. Nxc4 {[%emt 0:05:45]} d6 {[%emt 0:00:36]} 16. Ne3 {[%emt 0:06:08]} Bg5 {[%emt 0:01:10]} 17. Nd5 {[%emt 0:00:12]} Ne7 {[%emt 0:02:01]} 18. Bc4 {[%emt 0:07:17]} Rc8 {[%emt 0:01:35]} 19. Nxe7+ {[%emt 0:00:08]} Qxe7 {[%emt 0:01:35]} 20. Bd5 {[%emt 0:01:08]} Rfd8 {[%emt 0:03:42]} 21. Bc1 {[%emt 0:05:00]} Bxc1 {[%emt 0:11:19]} 22. Rxc1 {[%emt 0:01:31]} Rxc1 {[%emt 0:00:19]} 23. Qxc1 {[%emt 0:00:04]} Rc8 {[%emt 0:02:39]} 24. Qd2 {[%emt 0:00:06]} Bxd5 {[%emt 0:00:14]} 25. Qxd5 {[%emt 0:03:09]} Kf8 {[%emt 0:01:49]} 26. g3 {[%emt 0:02:09]} Qc7 {[%emt 0:03:44]} 27. Rd1 {[%emt 0:06:44]} Ke7 {[%emt 0:00:07]} 28. Qd2 {[%emt 0:14:36]} h6 {[%emt 0:03:46]} 29. Qd3 {[%emt 0:02:42]} Qb6 {[%emt 0:03:11]} 30. Rd2 {[%emt 0:02:48]} Rc1+ {[%emt 0:00:36]} 31. Rd1 {[%emt 0:00:05]} Rc6 {[%emt 0:01:02]} 32. Kg2 {[%emt 0:11:40]} Qc7 {[%emt 0:04:36]} 33. Qd5 {[%emt 0:02:14]} Rc4 {[%emt 0:02:51]} 34. Rd3 {[%emt 0:06:30]} Qc6 {[%emt 0:00:19]} 35. Qxc6 {[%emt 0:00:04]} Rxc6 {[%emt 0:00:04]} 36. Kf3 {[%emt 0:00:20]} Ke6 {[%emt 0:01:03]} 37. Ke3 {[%emt 0:00:16]} f5 {[%emt 0:01:05]} 38. f3 {[%emt 0:03:37]} g6 {[%emt 0:03:40]} 39. g4 {[%emt 0:02:11]} fxe4 {[%emt 0:06:57]} 40. fxe4 {[%emt 0:00:05]} Rc2 {[%emt 0:00:40]} 41. Rd2 {[%emt 0:30:38]} Rc3+ {[%emt 0:30:17]} 42. Rd3 {[%emt 0:00:07]} Rc1 {[%emt 0:00:30]} 43. Rd5 {[%emt 0:01:44]} Re1+ {[%emt 0:02:53]} 44. Kf3 {[%emt 0:00:56]} Rf1+ {[%emt 0:00:22]} 45. Ke3 {[%emt 0:00:08]} Re1+ {[%emt 0:00:00]} 46. Kf3 {[%emt 0:00:00]} Rf1+ {[%emt 0:00:00]} 47. Ke3 {[%emt 0:00:00]} Re1+ {[%emt 0:00:03]} 1/2-1/2